bitfinex-derivatives/quotes_ETHF0:USTF0_20251012
["timestamp","ask_amount","ask_price","bid_price","bid_amount"]
[1760297301724,1.48813,4131.9,4131.8,3.64314]
[1760297302418,0.5963,4131.7,4131.6,0.2227]
[1760297302624,1.03171,4131.1,4130.9,3.00987647]
[1760297302921,1.48821,4131.1,4130.8,3.2078]
[1760297304522,1.0528,4130.6,4130.5,0.00263597]
[1760297304717,1.48826,4130.6,4130.5,0.00263597]
[1760297305615,1.0528,4130.6,4130.5,0.00263597]
[1760297307129,0.7514,4130.6,4130.5,0.00263597]
[1760297307317,1.0528,4130.6,4130.5,0.00263597]
[1760297308325,1.0528,4130.6,4130.5,0.43810597]
[1760297309124,0.7892,4131.0,4130.9,0.43543]
[1760297309625,1.2457,4131.0,4130.9,0.43543]
[1760297309824,0.9443,4131.0,4130.9,0.43543]
[1760297314422,0.1929,4131.5,4131.1,1.08852]
[1760297314631,0.1929,4131.5,4131.4,5.25193317]
[1760297314825,3.2078,4132.1,4131.4,5.25193317]
[1760297315125,0.62784979,4132.0,4131.9,5.25188317]
[1760297323932,1.22994979,4132.0,4131.9,3.2078]
[1760297324133,0.62784979,4132.0,4131.9,3.64313]
[1760297329832,0.62784979,4132.0,4131.9,3.2078]
[1760297330133,1.06315979,4132.0,4131.9,3.2078]
[1760297330524,0.62784979,4132.0,4131.9,3.64313]
[1760297332235,1.63905979,4132.0,4131.9,3.2078]
[1760297332926,1.63905979,4132.0,4131.9,3.64313]
[1760297333130,0.62784979,4132.0,4131.9,3.64313]
[1760297336337,1.63905979,4132.0,4131.9,3.2078]
[1760297341739,1.20374979,4132.0,4131.9,3.2078]
[1760297342036,1.63905979,4132.0,4131.9,3.2078]
[1760297343547,0.62784979,4132.0,4131.9,5.25188317]
[1760297343740,0.00244979,4132.0,4131.9,5.25188317]
[1760297343937,0.62864979,4132.0,4131.9,5.25188317]
[1760297344247,0.62864979,4132.0,4131.9,8.26175964]
[1760297344647,0.62864979,4132.0,4131.9,5.25188317]
[1760297345651,0.00244979,4132.0,4131.9,5.25188317]
[1760297346553,0.4429,4132.9,4132.5,0.43526]
[1760297346746,0.4429,4132.9,4132.8,0.43523]
[1760297347243,0.1894,4133.5,4132.8,0.43523]
[1760297347451,0.4429,4133.3,4133.2,0.43519]
[1760297347650,0.4429,4133.3,4133.2,2.04394317]
[1760297347651,0.44476137,4133.3,4133.2,2.04394317]
[1760297347952,0.44476137,4133.3,4133.2,5.25174317]
[1760297349447,0.44476137,4133.3,4133.2,3.2078]
[1760297351641,0.00186137,4133.3,4133.2,3.2078]
[1760297351847,0.44476137,4133.3,4133.2,3.2078]
[1760297352052,0.00186137,4133.3,4133.2,3.2078]
[1760297352748,0.44476137,4133.3,4133.2,3.2078]
[1760297353350,0.00186137,4133.3,4133.2,3.2078]
[1760297353954,0.44476137,4133.3,4133.2,3.2078]
[1760297354350,0.44476137,4133.3,4133.2,3.64299]
[1760297356959,0.00186137,4133.3,4133.2,3.64299]
[1760297357763,0.00186137,4133.3,4133.2,4.59676331]
[1760297357957,0.44476137,4133.3,4133.2,4.59676331]
[1760297358259,0.44476137,4133.3,4133.2,5.03195331]
[1760297360448,0.00186137,4133.3,4133.2,5.03195331]
[1760297360652,0.1833,4134.0,4133.2,5.03195331]
[1760297360653,0.1833,4134.0,4133.7,0.43513]
[1760297360855,0.6262,4135.0,4134.1,1.08774]
[1760297361163,0.6262,4135.0,4134.9,4.59676331]
[1760297361461,0.4429,4135.4,4135.2,0.43497]
[1760297361650,0.44533742,4135.4,4135.2,0.43696534]
[1760297361958,0.4429,4135.3,4135.2,0.00199534]
[1760297362158,0.00243742,4135.4,4135.3,0.43497]
[1760297362358,0.1833,4136.0,4135.2,1.39095865]
[1760297362552,0.1833,4136.0,4135.9,1.38896331]
[1760297363063,0.1833,4136.5,4135.9,1.38896331]
[1760297363064,0.1833,4136.5,4135.9,1.82386331]
[1760297363359,0.62920579,4136.5,4136.4,4.59676331]
[1760297363561,0.00300579,4136.5,4136.4,4.59676331]
[1760297363761,0.4429,4137.3,4136.7,0.43481]
[1760297363960,0.4429,4137.3,4137.2,3.2078]
[1760297364456,0.43471,4137.8,4137.2,3.2078]
[1760297364660,0.7372,4137.7,4137.4,1.38896331]
[1760297364855,0.6262,4137.5,4137.4,1.38896331]
[1760297365051,0.91234,4137.5,4137.2,3.2078]
[1760297365250,1.0494,4137.3,4137.2,3.2078]
[1760297365452,0.2943,4136.9,4136.7,3.2078]
[1760297365662,0.4429,4136.8,4136.7,3.2078]
[1760297365857,0.4429,4136.8,4136.7,4.59676331]
[1760297366158,0.6262,4137.5,4136.8,0.4348]
[1760297366351,0.4429,4137.4,4137.3,4.59676331]
[1760297367267,0.7372,4137.4,4137.3,4.59676331]
[1760297367457,0.7372,4137.4,4137.3,3.2078]
[1760297368562,0.4429,4136.9,4136.7,3.2078]
[1760297369062,0.7372,4136.8,4136.7,3.2078]
[1760297369263,1.0494,4136.8,4136.7,3.2078]
[1760297369461,0.4429,4136.8,4136.7,3.2078]
[1760297369867,0.4429,4136.9,4136.5,1.38896331]
[1760297370166,0.4429,4136.9,4136.8,1.38896331]
[1760297370969,0.4429,4136.3,4136.2,3.2078]
[1760297371168,0.7372,4136.3,4136.2,3.2078]
[1760297371563,0.4429,4136.3,4136.2,3.2078]
[1760297372968,0.88967,4136.2,4136.1,1.38896331]
[1760297375769,1.19887,4136.2,4136.1,1.38896331]
[1760297376963,1.51041,4135.8,4135.7,3.2078]
[1760297377372,0.88971,4135.8,4135.7,3.2078]
[1760297377869,1.51041,4135.8,4135.7,3.2078]
[1760297378862,1.19891,4135.8,4135.7,3.2078]
[1760297379068,1.19891,4135.8,4135.7,4.59676331]
[1760297379669,0.4648,4135.8,4135.7,4.59676331]
[1760297380672,0.89971,4135.8,4135.7,4.59676331]
[1760297381474,1.20891,4135.8,4135.7,4.59676331]
[1760297382172,0.89971,4135.8,4135.7,4.59676331]
[1760297382573,0.01,4135.8,4135.7,5.03169331]
[1760297382773,3.3911,4136.5,4135.7,5.03169331]
[1760297382774,0.6381,4137.0,4136.0,1.08724]
[1760297383071,0.4548,4137.4,4136.9,1.38896331]
[1760297383270,0.4548,4137.2,4137.1,1.38896331]
[1760297383475,0.4348,4136.9,4136.5,3.64264]
[1760297383682,0.9955,4136.8,4136.7,1.38896331]
[1760297384267,0.7193,4136.8,4136.7,1.38896331]
[1760297385177,0.4175,4136.8,4136.7,1.38896331]
[1760297385372,0.169,4137.0,4136.7,1.38896331]
[1760297385574,0.7366,4136.9,4136.7,1.38896331]
[1760297385775,0.4175,4136.8,4136.7,1.38896331]
[1760297389373,0.7193,4136.8,4136.7,1.38896331]
[1760297390476,0.4175,4136.8,4136.7,1.38896331]
[1760297390875,0.7193,4136.8,4136.7,1.38896331]
[1760297391077,0.9955,4136.8,4136.5,3.2078]
[1760297391280,0.9955,4136.6,4136.5,3.2078]
[1760297392075,0.7193,4136.6,4136.5,3.2078]
[1760297395779,1.43033,4136.6,4136.5,3.2078]
[1760297395979,0.4708,4136.5,4136.4,1.38896331]
[1760297396175,0.4708,4136.5,4136.0,3.2078]
[1760297396176,0.4175,4136.1,4136.0,3.64269]
[1760297396381,0.169,4136.5,4136.0,4.59676331]
[1760297396581,0.5865,4136.5,4136.4,1.38896331]
[1760297396779,0.4175,4136.4,4136.1,0.43488]
[1760297396981,0.9955,4136.4,4136.3,1.38896331]
[1760297397174,1.43035,4136.4,4136.3,1.38896331]
[1760297397980,0.578,4136.1,4136.0,4.59676331]
[1760297398179,0.9955,4136.1,4136.0,4.59676331]
[1760297398387,1.43038,4136.1,4136.0,4.59676331]
[1760297400786,1.43038,4136.1,4135.5,3.2078]
[1760297400987,1.43044,4135.6,4135.5,3.2078]
[1760297401490,0.4175,4135.9,4135.6,0.43493]
[1760297401790,1.59939,4136.0,4135.9,1.38896331]
[1760297402781,1.60939,4136.0,4135.9,1.38896331]
[1760297402977,1.45263,4135.7,4135.6,1.82390331]
[1760297403188,1.0177,4135.7,4135.6,1.82390331]
[1760297403387,0.7395,4135.7,4135.6,1.82390331]
[1760297404390,0.179,4136.0,4135.5,3.2078]
[1760297404391,1.45264,4135.6,4135.5,3.2078]
[1760297404593,1.45267,4135.3,4135.2,0.00199534]
[1760297404886,1.45267,4135.3,4134.4,3.2078]
[1760297404887,1.62895,4134.5,4134.4,3.2078]
[1760297405189,1.62895,4134.5,4134.0,4.39675369]
[1760297405190,0.43509,4134.1,4134.0,1.38896331]
[1760297405389,1.45279,4134.1,4134.0,1.38896331]
[1760297405587,1.1939,4134.0,4133.9,3.2078]
[1760297405789,1.1939,4133.5,4133.4,3.2078]
[1760297405983,1.19577721,4133.5,4133.4,3.2098887]
[1760297406185,0.62027721,4133.5,4133.4,3.2098887]
[1760297406687,1.19577721,4133.5,4133.4,3.2098887]
[1760297407291,0.43521,4133.0,4132.9,3.2078]
[1760297407492,0.4422,4133.4,4132.9,1.38896331]
[1760297407695,0.7395,4133.4,4133.3,1.38896331]
[1760297407988,1.0177,4133.4,4133.3,1.38896331]
[1760297408389,1.0177,4133.4,4133.3,0.0021063]
[1760297410485,0.4422,4133.4,4133.3,1.39106961]
[1760297411396,0.7395,4133.4,4133.3,1.39106961]
[1760297411604,1.0177,4133.4,4133.3,1.39106961]
[1760297411794,1.0177,4133.4,4133.3,0.0021063]
[1760297414392,0.4422,4133.4,4133.3,0.0021063]
[1760297414592,0.4422,4133.4,4133.3,3.2099063]
[1760297414798,1.0177,4133.4,4133.3,3.2099063]
[1760297418002,0.4422,4133.4,4133.3,4.59886961]
[1760297418694,0.4422,4133.4,4133.3,1.39106961]
[1760297418695,1.0177,4133.4,4133.3,1.39106961]
[1760297418890,1.0177,4133.4,4133.3,0.0021063]
[1760297419091,1.0177,4132.7,4132.6,1.38896331]
[1760297419286,1.0177,4132.7,4132.3,4.59676331]
[1760297419287,0.1762,4132.5,4132.3,4.59676331]
[1760297419493,0.1762,4132.5,4132.4,1.38896331]
[1760297419693,0.1762,4132.5,4132.4,1.60766795]
[1760297420098,0.6184,4132.5,4132.4,1.61040185]
[1760297421298,1.1939,4132.5,4132.4,0.0027339]
[1760297421991,0.6184,4132.5,4132.4,0.0027339]
[1760297422399,1.1939,4132.5,4132.4,0.0027339]
[1760297425703,1.1939,4132.5,4131.4,10.145]
[1760297425704,1.08819,4132.4,4131.8,3.2078]
[1760297426007,1.0177,4131.9,4131.8,3.2078]
[1760297426313,0.4422,4131.9,4131.8,3.2078]
[1760297426807,0.4422,4131.9,4131.8,3.21065753]
[1760297427810,0.7395,4131.9,4131.8,3.64599753]
[1760297428010,1.45303,4131.9,4131.8,3.21065753]
[1760297429105,1.45303,4131.9,4131.8,3.64599753]
[1760297429408,1.0177,4131.9,4131.8,3.64599753]
[1760297429810,0.7395,4131.9,4131.8,3.64599753]
[1760297430010,1.45303,4131.9,4131.8,3.21065753]
[1760297430809,1.0177,4131.9,4131.8,3.64599753]
[1760297431918,1.45303,4131.9,4131.8,3.21065753]
[1760297432604,1.45303,4131.9,4131.8,0.00285753]
[1760297435317,0.4422,4131.9,4131.8,3.64599753]
[1760297435918,0.7319,4131.9,4131.8,3.64599753]
[1760297437316,3.2078,4133.3,4133.1,0.4352]
[1760297437517,0.00187721,4133.5,4133.3,0.43518]
[1760297437716,0.1671,4134.0,4133.9,0.43511]
[1760297438023,0.4118,4134.4,4134.3,0.43507]
[1760297438317,0.5789,4135.5,4135.4,0.43496]
[1760297438523,0.5789,4135.5,4135.4,5.25042795]
[1760297438716,0.00265142,4135.5,4135.4,5.25288031]
[1760297439223,0.01,4136.0,4135.9,0.4349]
[1760297439422,0.5889,4136.0,4135.9,5.25036795]
[1760297439725,0.5889,4136.0,4135.9,3.6427]
[1760297439925,0.1771,4136.0,4135.9,3.6427]
[1760297440413,0.17962052,4136.0,4135.9,3.6427]
[1760297440819,0.01252052,4136.0,4135.9,3.6427]
[1760297443515,0.62162052,4136.0,4135.9,3.6427]
[1760297444018,0.18742052,4136.0,4135.9,3.6427]
[1760297444220,0.01252052,4136.0,4135.9,3.6427]
[1760297445115,0.62162052,4136.0,4135.9,3.6427]
[1760297447418,0.18742052,4136.0,4135.9,3.6427]
[1760297447620,0.01252052,4136.0,4135.9,3.6427]
[1760297448225,0.43475,4137.4,4135.9,3.6427]
[1760297448226,0.6013,4137.5,4137.4,0.43475]
[1760297448419,0.6013,4137.5,4137.4,3.64255]
[1760297449126,0.60370646,4137.5,4137.4,3.64255]
[1760297450923,0.1749,4137.0,4136.9,3.2078]
[1760297451230,0.6091,4137.0,4136.9,3.2078]
[1760297453723,1.1671,4137.0,4136.9,3.2078]
[1760297454826,0.281,4136.7,4136.6,0.43483]
[1760297455127,0.9922,4136.7,4136.6,0.43483]
[1760297455326,0.4342,4136.7,4136.6,0.43483]
[1760297458233,0.7112,4136.7,4136.6,0.43483]
[1760297458631,0.4342,4136.7,4136.6,0.43483]
[1760297459833,0.6091,4137.0,4136.9,0.4348]
[1760297460029,0.4342,4137.4,4137.3,0.43476]
[1760297461539,0.8861,4137.0,4136.9,3.6426]
[1760297461731,0.1749,4137.0,4136.9,3.6426]
[1760297461935,0.6091,4137.0,4136.9,3.2078]
[1760297462128,1.1671,4137.0,4136.9,3.2078]
[1760297462534,1.1671,4137.0,4136.9,3.6426]
[1760297462737,0.6091,4137.0,4136.9,3.6426]
[1760297464136,0.8889,4137.0,4136.9,3.6426]
[1760297464332,1.60119,4137.0,4135.5,5.43458217]
[1760297464534,1.1664,4137.0,4136.6,0.43483]
[1760297464737,0.1699,4136.5,4136.4,0.43484]
[1760297464934,0.7164,4136.4,4136.3,3.64266]
[1760297466132,0.4366,4136.4,4136.3,3.64266]
[1760297466327,0.1699,4136.0,4135.8,3.2078]
[1760297466531,1.4288,4135.9,4135.8,3.2078]
[1760297467536,0.43495,4135.6,4135.4,0.00245236]
[1760297467735,1.1638,4135.5,4135.4,0.00245236]
[1760297468134,0.6065,4135.5,4135.4,0.00245236]
[1760297468945,0.4366,4134.4,4134.2,0.43508]
[1760297469238,0.4366,4134.4,4134.1,3.2078]
[1760297469449,0.4366,4134.4,4134.1,3.64289]
[1760297469639,0.4366,4134.3,4134.1,3.2078]
[1760297469839,0.4366,4134.2,4134.1,3.20971793]
[1760297470034,0.00254249,4134.3,4134.2,0.43508]
[1760297471149,0.43914249,4134.3,4134.2,0.43508]
[1760297473648,0.4366,4134.2,4134.1,8.6443001]
[1760297475453,0.00254249,4134.3,4134.2,0.43508]
[1760297476453,0.00254249,4134.3,4134.1,3.20971793]
[1760297476454,0.4366,4135.3,4135.1,0.43499]
[1760297476642,0.4366,4135.3,4135.2,3.2078]
[1760297477148,0.4366,4135.3,4135.2,3.64278]
[1760297477454,0.43902988,4135.3,4135.2,3.64278]
[1760297477752,0.43902988,4135.3,4135.2,3.2078]
[1760297478552,0.43902988,4135.3,4135.2,3.64278]
[1760297479348,0.1699,4136.5,4135.2,3.64278]
[1760297479349,0.6065,4136.5,4136.4,0.43485]
[1760297479547,3.6444,4137.2,4137.0,0.43478]
[1760297479747,0.4366,4137.4,4137.2,0.43476]
[1760297480148,0.6065,4137.5,4137.4,0.43475]
[1760297480356,0.60949943,4137.5,4137.4,3.64537746]
[1760297480953,0.60949943,4137.5,4137.4,3.21062746]
[1760297481156,0.60949943,4137.5,4137.4,0.00282746]
[1760297486160,1.16679943,4137.5,4137.4,0.00282746]
[1760297487659,1.16679943,4137.5,4136.9,3.2078]
[1760297487855,1.16679943,4137.5,4136.4,3.64265]
[1760297487856,0.8863,4136.5,4136.4,3.64265]
[1760297488164,0.8863,4136.5,4135.9,3.6427]
[1760297488165,0.1699,4136.0,4135.9,3.6427]
[1760297488350,0.6065,4136.0,4135.9,3.6427]
[1760297488860,0.6065,4136.0,4135.9,3.64507409]
[1760297489157,1.1638,4136.0,4135.9,0.00237409]
[1760297490566,1.1638,4136.0,4135.4,3.2078]
[1760297490567,1.04145,4135.5,4135.4,3.2078]
[1760297491464,1.04145,4135.5,4135.4,3.21007269]
[1760297492263,0.6065,4135.5,4135.4,3.21007269]
[1760297492464,0.6065,4136.0,4135.7,0.43492]
[1760297492662,0.3961,4135.9,4135.8,0.43491]
[1760297495964,0.563,4135.5,4135.4,3.21007269]
[1760297496768,0.563,4135.5,4135.4,0.00227269]
[1760297497063,4.20575,4135.5,4135.4,0.00227269]
[1760297498473,0.3961,4134.4,4134.3,3.2078]
[1760297499576,0.39889774,4134.4,4134.3,3.21051508]
[1760297499779,0.00279774,4134.4,4134.3,3.21051508]
[1760297499972,0.39889774,4134.4,4134.3,3.21051508]
[1760297500578,0.00279774,4134.4,4134.3,7.99309704]
[1760297500872,0.3961,4135.4,4134.4,1.08766]
[1760297501084,0.60185,4135.5,4135.1,0.43498]
[1760297501276,0.3961,4135.4,4135.1,0.43498]
[1760297501476,0.3961,4135.4,4135.2,0.43498]
[1760297501779,0.60185,4135.5,4135.2,0.43498]
[1760297501977,0.60373142,4135.5,4135.2,0.43498]
[1760297503180,0.3961,4135.4,4135.2,0.43498]
[1760297503373,0.60373142,4135.5,4135.2,0.43498]
[1760297503569,0.4362,4135.3,4135.2,0.43498]
[1760297504381,0.00188142,4135.5,4135.4,0.43496]
[1760297504581,0.43808142,4135.5,4135.4,0.43496]
[1760297504781,0.43808142,4135.5,4135.4,3.64276]
[1760297506586,0.59588142,4135.5,4135.4,3.64276]
[1760297509074,0.15968142,4135.5,4135.4,3.64276]
[1760297510484,0.59588142,4135.5,4135.4,3.64276]
[1760297510785,0.00188142,4135.5,4135.4,3.64276]
[1760297511586,0.15968142,4135.5,4135.4,3.64276]
[1760297511978,0.59588142,4135.5,4135.4,3.64276]
[1760297514287,1.57283142,4135.5,4135.4,3.2078]
[1760297514486,0.9782,4134.9,4134.8,3.2078]
[1760297516692,0.4362,4134.4,4134.3,3.64558508]
[1760297519184,1.41326,4134.4,4134.3,3.21051508]
[1760297519890,1.41326,4134.4,4134.3,0.00271508]
[1760297521593,0.4362,4134.4,4134.3,0.43778508]
[1760297521783,0.7134,4134.4,4134.3,0.00271508]
[1760297521986,1.41326,4134.4,4134.3,0.00271508]
[1760297524289,0.9782,4134.4,4134.3,0.00271508]
[1760297524481,0.9782,4134.4,4134.3,0.43778508]
[1760297525392,0.7134,4134.4,4134.3,0.43778508]
[1760297525592,0.1578,4134.5,4134.4,0.43506]
[1760297525894,0.1578,4134.5,4134.4,5.21764196]
[1760297526191,0.5563,4134.5,4134.4,5.21764196]
[1760297526985,0.4085,4134.9,4134.4,5.87024196]
[1760297527196,0.01,4134.9,4134.4,5.87024196]
[1760297527395,0.3985,4134.8,4134.7,0.43502]
[1760297528192,0.01,4134.9,4134.8,0.43502]
[1760297528393,0.4085,4134.9,4134.8,0.43502]
[1760297529797,0.01,4134.9,4134.8,3.64282]
[1760297531596,0.15968142,4135.5,4135.1,4.78258196]
[1760297531793,0.55818142,4135.5,4135.4,3.2078]
[1760297531999,0.55818142,4135.5,4135.4,3.64276]
[1760297532901,0.15968142,4135.5,4135.4,3.64276]
[1760297533397,0.55818142,4135.5,4135.4,3.64276]
[1760297533900,0.00188142,4135.5,4135.4,3.64276]
[1760297535998,0.84898142,4135.5,4135.4,3.64276]
[1760297536189,1.56533142,4135.5,4135.4,3.2078]
[1760297536395,1.56533142,4135.5,4135.0,0.435]
[1760297536599,0.6773,4135.4,4135.1,0.43498]
[1760297536893,0.6773,4135.4,4135.2,0.43497]
[1760297537694,0.5683,4135.0,4134.9,3.2078]
[1760297537890,0.1698,4135.0,4134.9,3.64281]
[1760297538195,0.17168142,4135.5,4135.4,0.43496]
[1760297538400,0.17168142,4135.5,4135.4,3.64276]
[1760297538699,0.57018142,4135.5,4135.4,3.64276]
[1760297538890,0.17168142,4135.5,4135.4,3.64276]
[1760297539896,0.57018142,4135.5,4135.4,3.64276]
[1760297540294,0.57018142,4135.5,4135.4,3.2078]
[1760297540602,0.00188142,4135.5,4135.4,3.64276]
[1760297541706,0.3985,4136.8,4136.7,0.43482]
[1760297541999,0.3985,4136.8,4136.1,1.08721]
[1760297542000,0.60459,4137.0,4136.6,3.2078]
[1760297542200,0.3985,4136.9,4136.6,3.2078]
[1760297542597,0.00212774,4136.9,4136.6,3.2078]
[1760297542788,0.71572774,4136.9,4136.6,3.2078]
[1760297542996,0.71361,4136.8,4136.6,3.2078]
[1760297543299,0.6773,4136.7,4136.6,3.2078]
[1760297545804,0.3985,4136.7,4136.6,3.2078]
[1760297546701,0.3985,4136.7,4136.6,3.64263]
[1760297547805,0.00212774,4136.9,4136.8,0.43481]
[1760297548402,0.00212774,4136.9,4136.6,3.2078]
[1760297548403,0.40062774,4136.9,4136.6,3.64262]
[1760297548596,0.3985,4136.8,4136.6,3.64263]
[1760297548903,0.00212774,4136.9,4136.7,0.43482]
[1760297549203,0.3985,4136.7,4136.6,3.64263]
[1760297549396,0.40062774,4136.9,4136.8,0.43481]
[1760297550703,0.00212774,4136.9,4136.8,0.43481]
[1760297551701,0.4167,4136.8,4136.6,3.2078]
[1760297551900,0.4167,4136.8,4136.7,0.43482]
[1760297552301,0.4167,4136.8,4136.6,3.2078]
[1760297552505,0.4018,4136.8,4136.6,3.2078]
[1760297553008,0.60059,4136.0,4135.9,3.00779038]
[1760297553306,0.4018,4135.7,4135.6,3.2078]
[1760297553506,0.9312,4135.7,4135.6,3.2078]
[1760297554301,0.9312,4135.7,4134.8,3.00779038]
[1760297554302,0.2722,4135.2,4135.1,3.2078]
[1760297554509,0.674,4135.2,4135.1,3.2078]
[1760297554713,0.4018,4135.2,4135.1,3.2078]
[1760297554913,0.4018,4135.4,4135.1,3.2078]
[1760297555211,0.1657,4135.5,4135.2,0.43498]
[1760297555414,0.4018,4135.4,4135.2,0.43498]
[1760297555614,0.1657,4135.5,4135.2,0.43498]
[1760297555814,0.4018,4135.4,4135.2,0.43498]
[1760297556112,0.1657,4135.5,4135.2,0.43498]
[1760297556307,0.4018,4135.4,4135.2,0.43498]
[1760297557106,0.1657,4135.5,4135.2,0.43498]
[1760297557909,0.1657,4135.5,4135.1,3.2078]
[1760297558309,0.1657,4135.5,4135.4,0.43496]
[1760297558515,1.08915774,4136.9,4135.5,0.43495]
[1760297558516,0.4018,4136.4,4135.5,0.43495]
[1760297558711,0.4018,4136.3,4136.1,3.2078]
[1760297559006,0.43485,4136.4,4136.1,3.2078]
[1760297559007,0.00212774,4136.9,4136.1,3.2078]
[1760297559213,0.4018,4136.3,4136.1,3.2078]
[1760297560010,0.43486,4136.3,4136.1,3.2078]
[1760297560318,0.4018,4136.8,4136.3,0.43485]
[1760297560507,0.43692774,4136.9,4136.3,0.43485]
[1760297560710,0.5675,4136.5,4136.3,0.43485]
[1760297561013,0.4018,4136.4,4136.3,0.43485]
[1760297561208,0.1657,4136.5,4136.1,8.64237917]
[1760297561209,0.674,4136.2,4136.1,3.2078]
[1760297562010,0.4018,4136.2,4136.1,3.2078]
[1760297564313,0.4018,4136.2,4136.1,3.64268]
[1760297566413,0.4018,4136.2,4136.1,3.2078]
[1760297566814,0.4018,4136.2,4136.1,3.64268]
[1760297568520,0.01,4136.5,4136.4,0.43485]
[1760297568819,0.1772,4136.5,4136.4,0.43485]
[1760297569018,0.01,4136.5,4136.4,0.43485]
[1760297571023,0.5822,4136.5,4136.4,0.43485]
[1760297571824,0.1772,4136.5,4136.4,0.43485]
[1760297572224,0.88044,4136.5,4136.1,6.21559038]
[1760297572421,0.6734,4136.2,4136.1,6.21559038]
[1760297572623,0.6734,4136.2,4136.1,3.64268]
[1760297574420,0.9389,4136.2,4136.1,3.2078]
[1760297574625,1.37377,4136.2,4136.1,3.2078]
[1760297576022,1.37383,4135.7,4135.6,3.2078]
[1760297576622,0.405,4135.7,4135.6,3.2078]
[1760297577222,0.6734,4135.7,4135.6,3.2078]
[1760297577924,0.405,4135.7,4135.6,3.2078]
[1760297578233,0.1772,4136.5,4136.1,0.43488]
[1760297578426,0.405,4136.4,4136.1,3.64268]
[1760297578723,0.405,4136.4,4136.2,0.43487]
[1760297578929,0.1772,4136.5,4136.2,0.43487]
[1760297579124,0.405,4136.4,4136.2,0.43487]
[1760297579328,0.1772,4136.5,4136.2,0.43487]
[1760297579630,0.405,4136.4,4136.2,0.43487]
[1760297579827,0.1772,4136.5,4136.2,0.43487]
[1760297580033,0.405,4136.4,4136.1,3.2078]
[1760297580229,0.6734,4136.2,4136.1,3.2078]
[1760297580634,0.6734,4136.2,4136.1,3.64268]
[1760297580830,0.6734,4136.2,4136.1,3.2078]
[1760297581023,0.9389,4136.2,4136.1,3.64268]
[1760297581229,0.405,4136.2,4136.1,3.64268]
[1760297582537,0.405,4136.2,4136.1,3.2078]
[1760297582835,0.405,4136.2,4136.1,3.64268]
[1760297583036,0.9519,4136.2,4136.1,3.2078]
[1760297583831,1.38677,4136.2,4136.1,3.2078]
[1760297587536,0.43491,4135.9,4135.7,0.43492]
[1760297587735,0.278,4135.8,4135.7,0.43492]
[1760297587940,0.9411,4135.8,4135.7,0.43492]
[1760297588342,0.9411,4135.7,4135.6,6.65053038]
[1760297588540,0.9411,4135.7,4135.6,3.64274]
[1760297588838,0.9411,4135.7,4135.6,3.2078]
[1760297589038,1.37603,4135.7,4135.6,3.2078]
[1760297589243,0.6626,4135.7,4135.6,6.21559038]
[1760297589536,0.9411,4135.7,4135.6,6.21559038]
[1760297589844,0.9411,4135.7,4135.6,6.65053038]
[1760297590033,0.9411,4135.7,4135.6,3.64274]
[1760297591035,0.3846,4135.7,4135.6,3.64274]
[1760297595049,0.3846,4135.7,4135.6,6.65053038]
[1760297595542,0.1588,4136.0,4135.9,0.4349]
[1760297596141,0.5434,4136.0,4135.9,0.4349]
[1760297596540,0.3846,4136.4,4136.3,0.43486]
[1760297597549,0.6626,4136.4,4136.3,0.43486]
[1760297597849,0.3846,4136.3,4136.1,3.64267]
[1760297598042,0.278,4136.4,4136.1,3.64267]
[1760297598348,0.5565,4136.3,4136.1,3.2078]
[1760297598545,0.1588,4136.0,4135.8,3.44270038]
[1760297598747,1.376,4135.9,4135.8,3.00779038]
[1760297598945,0.5565,4135.9,4135.6,3.64273]
[1760297599146,0.3846,4135.7,4135.6,3.64273]
[1760297599352,0.3846,4135.7,4135.6,6.65052038]
[1760297600151,0.9411,4135.7,4135.6,6.21559038]
[1760297600354,0.9411,4135.7,4135.6,3.2078]
[1760297601452,0.9411,4135.7,4135.6,6.21559038]
[1760297601658,0.9411,4135.7,4135.6,6.65053038]
[1760297601852,0.9411,4135.7,4135.6,6.21559038]
[1760297602351,1.37602,4135.7,4135.6,2.84264693]
[1760297602545,0.278,4134.9,4134.5,3.2078]
[1760297602746,1.37614,4134.6,4134.5,3.2078]
[1760297602953,0.99156,4134.4,4134.3,0.00271508]
[1760297603148,1.37616,4134.4,4134.3,0.00271508]
[1760297606647,4.58396,4134.4,4134.3,0.00271508]
[1760297610357,4.58396,4134.4,4134.3,0.55291508]
[1760297610850,4.58396,4134.4,4134.3,0.27491508]
[1760297611258,4.1489,4134.4,4134.3,0.55291508]
[1760297611564,4.58396,4134.4,4134.3,0.00271508]
[1760297614359,1.37616,4134.4,4134.3,0.00271508]
[1760297615269,1.37616,4134.4,4134.3,0.27491508]
[1760297618471,1.37616,4134.4,4134.3,0.00271508]
[1760297618662,1.37616,4134.4,4134.3,0.26231508]
[1760297619469,1.37616,4134.4,4134.3,0.00271508]
[1760297620270,1.37616,4134.4,4134.3,0.26231508]
[1760297621777,1.37616,4134.4,4134.3,0.00271508]
[1760297623880,1.37616,4134.4,4134.3,0.51591508]
[1760297624874,1.37616,4134.4,4134.3,0.95098508]
[1760297625186,1.37616,4134.4,4134.3,0.51591508]
[1760297625573,0.1588,4135.0,4134.6,0.5248]
[1760297625776,4.1564,4135.3,4135.2,0.5248]
[1760297626076,0.9486,4135.8,4135.7,0.5248]
[1760297626475,1.38351,4135.8,4135.7,0.5248]
[1760297627579,1.38351,4135.8,4135.6,1.82340905]
[1760297627580,0.9486,4135.7,4135.6,1.38847905]
[1760297628674,0.9486,4135.7,4135.6,1.65857905]
[1760297629888,0.9486,4135.7,4135.5,0.43495]
[1760297629889,1.38354,4135.6,4135.5,1.65857905]
[1760297630086,0.9486,4134.8,4134.7,3.2078]
[1760297630483,0.9486,4134.8,4134.7,3.4779]
[1760297630985,0.9486,4134.8,4134.7,4.86637905]
[1760297631485,0.9486,4134.8,4134.7,3.2078]